[Event "China Championship-A Women 2024"]
[Site "Xinhua Jiangsu"]
[Date "2024.05.10"]
[Round "5.1"]
[White "Song, Yuxin"]
[Black "Li, Xueyi"]
[Result "1/2-1/2"]
[ECO "B10"]
[WhiteElo "2381"]
[BlackElo "2212"]
[Annotator "TA"]
[PlyCount "97"]
[EventDate "2024.05.06"]
[EventType "tourn"]
[EventCountry "CHN"]
[SourceTitle "playchess.com"]
[Source "ChessBase"]
[SourceQuality "1"]
[TimeControl "40/5400+30:1800+30"]

{[%evp 12,97,12,-25,10,0,0,0,8,0,43,50,49,52,51,54,48,42,53,53,63,43,49,47,63,51,58,56,71,66,86,82,92,87,83,87,85,80,89,76,100,45,42,44,128,131,139,141,142,144,120,112,120,109,116,106,106,120,130,134,127,122,152,0,127,134,150,121,130,123,146,126,139,134,154,157,139,18,22,0,0,0,0,0,0,0,8,0]} 1. e4 {[%emt 0:00:03]} c6 {[%emt 0:01:02]} 2. c4 {[%emt 0:00:06]} d5 {[%emt 0:00:18]} 3. exd5 {[%emt 0:00:08]} cxd5 {[%emt 0:00:04]} 4. cxd5 {[%emt 0:00:03]} Nf6 {[%emt 0:00:05]} 5. Bb5+ {[%emt 0:00:03]} Nbd7 {[%emt 0:00:06]} 6. Nc3 {[%emt 0:00:11]} a6 {[%emt 0:00:39]} 7. Be2 {[%emt 0:00:06]} g6 {[%emt 0:02:51][%mdl 1024] Black has compensation.} 8. Qb3 {[%emt 0:00:05]} Bg7 {[%emt 0:00:11]} 9. d4 {[%emt 0:00:04]} O-O {[%emt 0:11:31]} 10. Bf3 {[%emt 0:00:15]} Qb6 {[%emt 0:08:32] Wards off a4} 11. Nge2 {[%emt 0:03:46]} Qxb3 {[%emt 0:00:49]} 12. axb3 {[%emt 0:00:06]} Nb6 {[%emt 0:00:07]} 13. h3 {[%emt 0:02:58]} Rd8 {[%emt 0:13:06]} 14. Ra5 {[%emt 0:02:24]} Bf5 {[%emt 0:00:11]} 15. Bf4 {[%emt 0:08:00]} Ne8 {[%emt 0:03:20] Against Bc7} 16. Kd2 {[%emt 0:06:24] Repels Bc2} Nd6 {[%emt 0:00:58][%cal Od6c4]} 17. Rha1 {[%emt 0:00:46]} Rac8 {[%emt 0:06:10]} 18. Rc5 {[%emt 0:04:06]} Bd7 {[%emt 0:01:04]} 19. g4 {[%emt 0:11:48]} Be8 {[%emt 0:00:50]} 20. Rc1 {[%emt 0:09:45]} Nd7 {[%emt 0:18:28]} 21. Rxc8 {[%emt 0:00:29]} Rxc8 {[%emt 0:00:04]} 22. Ne4 {[%emt 0:02:43]} Rxc1 {[%emt 0:02:21]} 23. Nxd6 {[%emt 0:02:11]} (23. Nxc1 Nxe4+ 24. Bxe4 Bxd4 $11) 23... exd6 {[%emt 0:03:38]} 24. Kxc1 {[%emt 0:00:13]} Bf8 {[%emt 0:00:05]} 25. Ng3 {[%emt 0:02:14] White is more active.} Nb6 {[%emt 0:05:18]} 26. Ne4 {[%emt 0:02:19]} (26. Kd2 $16) 26... Nxd5 $14 {[%emt 0:00:10]} 27. Bxd6 {[%emt 0:00:06]} f5 {[%emt 0:07:29]} (27... Bc6 $14) 28. gxf5 $16 {[%emt 0:03:59]} gxf5 {[%emt 0:00:21] [#]} 29. Ng3 {[%emt 0:00:13][%csl LRd5,LRf5]} Bxd6 {[%emt 0:00:19]} 30. Bxd5+ {[%emt 0:00:08][%mdl 4096] Endgame. KBB-KBN} Kf8 {[%emt 0:00:10]} 31. Nxf5 {[%emt 0:03:04]} Bf4+ {[%emt 0:00:05]} 32. Ne3 {[%emt 0:00:08]} b5 {[%emt 0:02:06]} 33. Kd2 {[%emt 0:01:57]} a5 {[%emt 0:00:55]} 34. Kd3 {[%emt 0:03:29]} Bd7 {[%emt 0:05:09]} 35. Bg2 {[%emt 0:06:15]} Bd6 {[%emt 0:02:55]} 36. Ke4 {[%emt 0:01:19]} Bb4 {[%emt 0:03:27]} 37. Kd3 {[%emt 0:04:31]} Bd6 $1 {[%emt 0:00:19]} 38. Be4 {[%emt 0:01:10]} h5 {[%emt 0:02:40]} 39. Bf5 {[%emt 0:02:01]} Be8 {[%emt 0:00:18]} 40. Ke4 {[%emt 0:00:00]} Bb4 {[%emt 0:00:00]} 41. f4 {[%emt 0:04:41]} Bd2 {[%emt 0:04:21]} 42. d5 {[%emt 0:00:52]} Ke7 {[%emt 0:01:05] [#]} 43. Be6 $1 {[%emt 0:00:37]} Bc1 {[%emt 0:00:31]} 44. Nd1 {[%emt 0:02:37]} (44. Nf5+ $16 Kd8 45. Nd4 Bxb2 46. f5) 44... h4 $1 $11 {[%emt 0:07:00] The position is equal.} 45. f5 {[%emt 0:03:00] Ke5 is the strong threat.} Bh5 $1 {[%emt 0:00:16]} 46. Nc3 {[%emt 0:00:16]} Be8 {[%emt 0:00:25]} 47. Nd1 {[%emt 0:17:41] And now Ke5 would win.} (47. Ke5 Bxb2 48. f6+ Kf8) 47... Bh5 $1 {[%emt 0:00:07]} 48. Nc3 {[%emt 0:02:38]} Be8 {[%emt 0:00:12]} 49. Nd1 {[%emt 0:00:20] White really could win this.   Weighted Error Value: White=0.14 (very precise) /Black=0.08 (flawless) .  Mistake:       	White=2     	Black=1      Inaccurate:     	---       	Black=1      OK:         	White=21    	Black=19     Best:        	---       	Black=1      Strong:       	White=1     	Black=4} (49. Ke5 Bxb2 50. f6+ Kf8) 1/2-1/2

[Event "China Championship-A Women 2024"]
[Site "Xinhua Jiangsu"]
[Date "2024.05.10"]
[Round "5.2"]
[White "Zhou, Yafei"]
[Black "Wang, Qinxuanyi"]
[Result "1/2-1/2"]
[ECO "D12"]
[WhiteElo "1835"]
[BlackElo "2049"]
[Annotator "NA RC"]
[PlyCount "80"]
[EventDate "2024.05.06"]
[EventType "tourn"]
[EventCountry "CHN"]
[SourceTitle "playchess.com"]
[Source "ChessBase"]
[SourceQuality "1"]
[TimeControl "40/5400+30:1800+30"]

1. d4 {[%emt 0:00:02]} d5 {[%emt 0:00:08]} 2. c4 {[%emt 0:00:06]} c6 {[%emt 0:00:09]} 3. Nf3 {[%emt 0:00:05]} Nf6 {[%emt 0:00:14]} 4. e3 {[%emt 0:00:07]} Bf5 {[%emt 0:00:44]} 5. b3 {[%emt 0:08:57]} e6 {[%emt 0:00:36]} 6. Nbd2 {[%emt 0:00:07]} Nbd7 {[%emt 0:05:57]} 7. Bb2 {[%emt 0:00:20]} Be7 {[%emt 0:00:28]} 8. Be2 {[%emt 0:00:22]} O-O {[%emt 0:01:36]} 9. O-O {[%emt 0:00:38]} h6 {[%emt 0:00:47]} 10. Ne5 {[%emt 0:11:22]} Nxe5 {[%emt 0:02:18]} 11. dxe5 {[%emt 0:00:24]} Nd7 {[%emt 0:00:06]} 12. f4 {[%emt 0:16:23]} a5 {[%emt 0:03:16]} 13. Nf3 {[%emt 0:00:55]} Bc5 {[%emt 0:07:42]} 14. Nd4 {[%emt 0:02:55]} Bh7 {[%emt 0:03:33]} 15. Rc1 {[%emt 0:02:48]} Qe7 {[%emt 0:01:42]} 16. Bd3 {[%emt 0:00:34]} Bxd3 {[%emt 0:01:59]} 17. Qxd3 {[%emt 0:00:04]} a4 {[%emt 0:02:57]} 18. cxd5 {[%emt 0:06:16]} cxd5 {[%emt 0:00:08]} 19. Qb5 $11 {[%emt 0:01:45]} axb3 {[%emt 0:05:49]} 20. axb3 {[%emt 0:01:24]} Ra2 {[%emt 0:12:21]} 21. Bc3 {[%emt 0:02:04]} Nb8 {[%emt 0:07:02]} 22. Ra1 {[%emt 0:14:49]} Rxa1 {[%emt 0:00:40]} 23. Rxa1 {[%emt 0:00:42]} Rc8 {[%emt 0:02:58]} 24. g3 {[%emt 0:08:04]} Na6 {[%emt 0:01:46]} 25. Ra2 {[%emt 0:03:50]} Bxd4 {[%emt 0:04:23]} 26. Bxd4 {[%emt 0:00:05]} Qc7 {[%emt 0:01:58]} 27. Kg2 {[%emt 0:03:06]} g6 {[%emt 0:01:49]} 28. Re2 {[%emt 0:02:07]} Qe7 {[%emt 0:01:03]} 29. Bb2 {[%emt 0:02:52]} Rc6 {[%emt 0:01:02]} 30. Qa5 {[%emt 0:01:33]} Qc5 {[%emt 0:05:02]} 31. Qa4 {[%emt 0:03:25]} Kh7 {[%emt 0:05:37]} 32. Ba3 {[%emt 0:01:07]} Qb6 {[%emt 0:07:09]} 33. Bd6 {[%emt 0:00:24]} Nc7 {[%emt 0:01:20]} 34. Bxc7 {[%emt 0:02:09]} Qxc7 {[%emt 0:00:54]} 35. Qa8 {[%emt 0:03:00]} Kg7 {[%emt 0:01:00]} 36. Ra2 {[%emt 0:01:30]} Rc2+ {[%emt 0:03:33]} 37. Kf3 {[%emt 0:00:49]} Rc3 {[%emt 0:01:01]} 38. Qe8 {[%emt 0:00:18]} d4 {[%emt 0:01:39]} 39. Kg4 {[%emt 0:00:50]} h5+ {[%emt 0:02:11]} 40. Kh3 {[%emt 0:00:00]} Qc6 {[%emt 0:00:00]} 1/2-1/2

[Event "China Championship-A Women 2024"]
[Site "Xinhua Jiangsu"]
[Date "2024.05.10"]
[Round "5.3"]
[White "Xiao, Yiyi"]
[Black "Yan, Tianqi"]
[Result "0-1"]
[ECO "C02"]
[WhiteElo "2349"]
[BlackElo "2276"]
[Annotator "TA"]
[PlyCount "78"]
[EventDate "2024.05.06"]
[EventType "tourn"]
[EventCountry "CHN"]
[SourceTitle "playchess.com"]
[Source "ChessBase"]
[SourceQuality "1"]
[TimeControl "40/5400+30:1800+30"]

{[%evp 12,78,25,-7,-15,-7,-8,-18,0,0,27,28,29,14,12,21,10,29,22,28,29,0,0,10,6,12,4,0,0,0,0,0,0,-4,0,-28,-11,-17,-25,-32,0,0,0,-185,0,23,0,-41,-35,-33,-37,-98,-84,-102,-88,-77,0,-126,0,-566,-558,-645,-642,-1506,-1835,-1739,-1711,-29998,-29999]} 1. e4 {[%emt 0:00:08]} e6 {[%emt 0:00:15]} 2. d4 {[%emt 0:00:08]} d5 {[%emt 0:00:06]} 3. e5 {[%emt 0:00:05]} c5 {[%emt 0:00:15]} 4. c3 {[%emt 0:00:09]} Nc6 {[%emt 0:00:16]} 5. Nf3 {[%emt 0:00:09]} Bd7 {[%emt 0:00:31]} 6. Be2 {[%emt 0:00:17]} Nge7 {[%emt 0:00:44]} 7. h4 {[%emt 0:00:41]} cxd4 {[%emt 0:05:35]} 8. cxd4 {[%emt 0:00:08]} Qb6 {[%emt 0:02:04] White should prevent ...Nf5.} 9. Na3 {[%emt 0:00:51]} Rc8 {[%emt 0:27:24] The position is equal.} 10. Nc2 {[%emt 0:09:00]} Nb4 {[%emt 0:09:28]} 11. Nxb4 {[%emt 0:10:02]} Qxb4+ {[%emt 0:00:09]} 12. Bd2 {[%emt 0:00:08]} Qb6 {[%emt 0:02:31]} 13. a4 {[%emt 0:03:27][%cal Ba2a4,Ba4a5][%mdl 32]} Nc6 {[%emt 0:12:34] Dodges b4} 14. a5 {[%emt 0:03:38]} Qd8 {[%emt 0:00:28]} 15. h5 {[%emt 0:11:05]} h6 {[%emt 0:02:34]} 16. Rh3 {[%emt 0:00:59][%cal Bh1h3,Bh3g3,Bg3g7][%mdl 32]} Bb4 {[%emt 0:04:54]} 17. Rg3 {[%emt 0:07:04]} Bxa5 {[%emt 0:10:01]} 18. Rxg7 {[%emt 0:05:01]} Qb6 {[%emt 0:00:21][%csl LRb2,LRd4][%cal Ob6b2]} 19. Kf1 {[%emt 0:01:00]} Qxb2 {[%emt 0:03:13]} 20. Be3 {[%emt 0:11:40]} (20. Bxa5 Nxa5 21. Rb1 (21. Rxa5 $2 Rc1 $19) 21... Qc2 $17) 20... Bb6 {[%emt 0:02:49]} 21. Rb1 {[%emt 0:03:16]} Qa3 {[%emt 0:04:19]} 22. Rg3 {[%emt 0:08:35]} Ne7 {[%emt 0:03:36] White must now prevent ...Nf5.} 23. Bd3 {[%emt 0:07:03]} Ba4 {[%emt 0:01:23]} 24. Qe2 {[%emt 0:00:15]} Rc3 {[%emt 0:03:29]} 25. Ne1 {[%emt 0:01:29][%cal Oe3c1]} Rb3 {[%emt 0:02:20] aiming for ...Rxb1.} (25... Nc6 $5) 26. Bc1 $1 {[%emt 0:09:05]} Qb4 {[%emt 0:00:02]} 27. Ra1 {[%emt 0:01:18] [#]} (27. Rxb3 Qxb3 28. Bc2 Qb5 $17) (27. Bd2 $1 $11 Qa3 28. Rxb3 Qxb3 29. Rf3) 27... Bd7 $2 {[%emt 0:02:06]} (27... Qxd4 28. Nc2 Qc5 (28... Qh4 $2 29. Rh3 $18) 29. Be3 $16 (29. Rxa4 $2 Rb1 $19)) (27... Bxd4 28. Rg4 (28. Nc2 Qc5 $17) 28... Nc6 (28... Bxa1 $2 29. Rxb4 Rxb4 30. Ba3 $18) 29. Be3 $14 (29. Nc2 Qc5 $17)) (27... Nf5 $1 $19 {[%cal Rf5g3]} 28. Rh3 (28. Bxf5 $2 Rxg3 29. Bd3 Rxd3 $19) 28... Bb5 (28... Bxd4 29. Bd2 $14) (28... Nxd4 29. Qg4 $17) (28... Qxd4 29. Ra2 $17)) 28. Nc2 $11 {[%emt 0:03:33]} Qc3 {[%emt 0:00:02]} 29. Ba6 {[%emt 0:02:22]} Qxg3 {[%emt 0:00:40]} 30. fxg3 {[%emt 0:00:01]} bxa6 {[%emt 0:00:02]} 31. Qf2 {[%emt 0:01:40] White is weak on the light squares} (31. Kg1 $15) 31... Nf5 {[%emt 0:01:06] ...Rg8 is the strong threat.} 32. g4 {[%emt 0:00:46]} (32. Rxa6 $2 Bb5+ (32... Rxg3 33. Bf4 $11) (32... Nxg3+ 33. Kg1 $11) 33. Kg1 Bxa6 $19) 32... Ng3+ {[%emt 0:00:16]} 33. Kg1 {[%emt 0:00:04]} Rc3 {[%emt 0:00:55]} (33... Ne4 $17 34. Qe1 Rc3) 34. Qf6 {[%emt 0:01:43] [#]} (34. Rxa6 $11 {remains equal.} Ne4 35. Qe2) 34... Rg8 {[%emt 0:00:20] Chess con chili. Active counter play!} ({Black should try} 34... Rh7 $1 $17 35. Qf2 Bb5) 35. Rb1 $2 {[%emt 0:00:36][%mdl 8192]} Ne4 $19 {[%emt 0:00:29]} (35... Rxc2 36. Ba3 (36. Bxh6 $2 {too greedy.} Ne4 $19) 36... Nf5 (36... Bxd4+ $2 {is the wrong capture.} 37. Kh2 $18) 37. gxf5 $19) 36. Qxh6 {[%emt 0:00:08][%cal Ob1b6] Rxb6! would now be deadly.} Rxc2 {[%emt 0:00:24]} 37. Ba3 {[%emt 0:00:33][%cal Ob1b6]} Bxd4+ {[%emt 0:00:34]} 38. Kh2 {[%emt 0:00:06]} Bxe5+ {[%emt 0:00:04]} 39. Kh3 {[%emt 0:00:03]} Nf2+ {[%emt 0:00:10] Weighted Error Value: White=0.81/Black=0.23 (precise) .  Loses game:     	White=2     	---        Missed win:     	---       	Black=1      Mistake:       	White=2     	Black=2      Inaccurate:     	White=3     	Black=2      OK:         	White=9     	Black=16     Best:        	White=3     	Black=3      Strong:       	White=1     	---} 0-1

[Event "China Championship-A Women 2024"]
[Site "Xinhua Jiangsu"]
[Date "2024.05.10"]
[Round "5.4"]
[White "Chen, Yining"]
[Black "Ni, Shiqun"]
[Result "0-1"]
[ECO "A65"]
[WhiteElo "2338"]
[BlackElo "2324"]
[Annotator "TA"]
[PlyCount "72"]
[EventDate "2024.05.06"]
[EventType "tourn"]
[EventCountry "CHN"]
[SourceTitle "playchess.com"]
[Source "ChessBase"]
[SourceQuality "1"]
[TimeControl "40/5400+30:1800+30"]

{[%evp 20,72,32,25,56,39,62,51,29,66,57,33,42,27,16,-66,-54,-64,-57,-57,-62,-51,-40,-69,-33,-68,-61,-125,-110,-123,-102,-177,-186,-183,-135,-130,-121,-292,-265,-212,-200,-422,-210,-189,-66,-57,-33,-116,-102,-29993,-29994,-29994,-29995,-29997,-29998]} 1. d4 {[%emt 0:01:11]} Nf6 {[%emt 0:00:04]} 2. c4 {[%emt 0:00:08]} g6 {[%emt 0:00:07]} 3. Nc3 {[%emt 0:00:17]} Bg7 {[%emt 0:00:11]} 4. e4 {[%emt 0:00:20]} d6 {[%emt 0:00:09]} 5. f3 {[%emt 0:00:07]} O-O {[%emt 0:00:16]} 6. Be3 {[%emt 0:00:09]} c5 {[%emt 0:00:44]} 7. Nge2 {[%emt 0:00:31]} Nc6 {[%emt 0:00:17]} 8. d5 {[%emt 0:00:32]} Ne5 {[%emt 0:00:09]} 9. Ng3 {[%emt 0:00:11]} e6 {[%emt 0:00:09]} 10. Be2 {[%emt 0:00:16]} exd5 {[%emt 0:00:10]} 11. cxd5 {[%emt 0:00:10]} b5 {[%emt 0:00:16]} 12. Nxb5 {[%emt 0:10:37]} Rb8 $1 {[%emt 0:00:12][%cal Ob8b5] Strongly threatening ...Rxb5!} 13. Qd2 {[%emt 0:06:14]} (13. Nxa7 $2 Qa5+ (13... Rxb2 14. O-O $11) 14. b4 Qxa7 $19) 13... h5 {[%emt 0:00:09][%cal Bh7h5,Bh5h4,Bh4h3][%mdl 32] Dodges h3. And now ...h4 would win. White is slightly better.} 14. O-O {[%emt 0:01:14][%cal Og3h1]} ({But not} 14. Nxa7 h4 15. Nxc8 Qxc8 $17) 14... h4 {[%emt 0:00:07]} 15. Nh1 {[%emt 0:00:08][%cal Oh2h3]} h3 {[%emt 0:00:05]} 16. g3 {[%emt 0:05:33][%cal Ob5c3]} Nxf3+ $1 {[%emt 0:00:18]} 17. Bxf3 {[%emt 0:14:10]} (17. Rxf3 $11 Nxe4 18. Qc2) 17... Rxb5 $15 {[%emt 0:00:06]} 18. Nf2 {[%emt 0:00:41] Inhibits Ng4.} Nd7 {[%emt 0:10:00]} 19. Rab1 {[%emt 0:01:08][%cal Ob2b3]} Ne5 {[%emt 0:00:35]} 20. Be2 {[%emt 0:00:22][%cal Ob2b4]} Rb4 {[%emt 0:01:18]} 21. Qc2 {[%emt 0:03:19]} a5 {[%emt 0:22:30] Black is more active.} 22. a3 {[%emt 0:07:13]} Rb8 {[%emt 0:05:03]} 23. Nd3 {[%emt 0:07:03]} (23. Bd2 $15) 23... Ng4 $17 {[%emt 0:14:32]} 24. Bxg4 {[%emt 0:01:15]} Bxg4 {[%emt 0:00:01]} 25. b4 {[%emt 0:06:49]} (25. Nf2 $17 Bd7 26. b3) 25... cxb4 $19 {[%emt 0:02:00]} 26. axb4 {[%emt 0:00:06]} Qe7 {[%emt 0:00:11]} ({Black should try} 26... Rc8 $19 27. Qa2 Rc3) 27. Nf2 $17 {[%emt 0:02:06]} Rfc8 {[%emt 0:06:34]} 28. Qd3 {[%emt 0:02:48]} (28. Qd2 $17 Rxb4 (28... Bc3 29. Qd3 $11) 29. Rxb4 axb4 30. Qxb4 (30. Nxg4 $2 {too greedy.} Qxe4 31. Nh6+ Bxh6 $19)) 28... Rc3 $19 {[%emt 0:02:37]} 29. Qd2 {[%emt 0:00:08]} axb4 {[%emt 0:10:07] White must now prevent ...Bf3.} 30. Bd4 $2 {[%emt 0:03:03]} (30. Nxg4 Qxe4 31. Nh6+ Kh7 32. Nxf7 Qxe3+ 33. Qxe3 Rxe3 34. Rf4) 30... Bxd4 {[%emt 0:13:07]} (30... Rc2 $142 31. Qxc2 Bxd4) 31. Qxd4 {[%emt 0:00:06]} Qg5 {[%emt 0:00:16]} ({Black should play} 31... Be2 $19 32. Rfe1 Rc2 33. Nxh3 b3) 32. Rxb4 $15 {[%emt 0:05:04]} Rbc8 {[%emt 0:01:23]} 33. Nxg4 {[%emt 0:05:40]} (33. Rb8 $1 $15) 33... Qxg4 $40 {[%emt 0:00:01][%mdl 128] Black is out for blood.} 34. Qf6 $2 {[%emt 0:02:36][%mdl 8192] [#]} (34. Rb2 $17) 34... Rxg3+ $1 {[%emt 0:01:26][%mdl 512] Black mates.} 35. Kh1 {[%emt 0:00:49] [#]} Rf3 $3 {[%emt 0:00:04][%mdl 512]} 36. Qxf3 {[%emt 0:00:51]} (36. Rb2 Rxf6) 36... Qxf3+ {[%emt 0:00:09] Weighted Error Value: White=0.50/Black=0.24 (precise) .  Loses game:     	White=2     	---        Mistake:       	White=5     	Black=3      Inaccurate:     	White=2     	Black=1      OK:         	White=9     	Black=6      Best:        	White=2     	Black=6      Strong:       	---       	Black=2      Brilliant:      	---       	Black=1} 0-1

[Event "China Championship-A Women 2024"]
[Site "Xinhua Jiangsu"]
[Date "2024.05.10"]
[Round "5.5"]
[White "Lu, Miaoyi"]
[Black "Zhang, Xiao"]
[Result "1-0"]
[ECO "A22"]
[WhiteElo "2439"]
[BlackElo "2261"]
[Annotator "RC"]
[PlyCount "114"]
[EventDate "2024.05.06"]
[EventType "tourn"]
[EventCountry "CHN"]
[SourceTitle "playchess.com"]
[Source "ChessBase"]
[SourceQuality "1"]
[TimeControl "40/5400+30:1800+30"]

1. c4 {[%emt 0:00:01]} e5 {[%emt 0:00:28]} 2. Nc3 {[%emt 0:00:03]} Nf6 {[%emt 0:00:18]} 3. Nf3 {[%emt 0:00:03]} e4 {[%emt 0:01:18]} 4. Ng5 {[%emt 0:00:03]} c6 {[%emt 0:00:04]} 5. Qa4 {[%emt 0:03:42]} Qe7 {[%emt 0:00:09]} 6. Qc2 {[%emt 0:07:25]} d5 {[%emt 0:20:51]} 7. cxd5 {[%emt 0:00:02]} Bf5 {[%emt 0:00:07]} 8. d6 {[%emt 0:18:44]} Qxd6 {[%emt 0:00:55]} 9. f3 {[%emt 0:04:02]} Na6 {[%emt 0:06:47]} 10. fxe4 {[%emt 0:05:20]} Bg6 {[%emt 0:08:20]} 11. d3 {[%emt 0:02:28]} Qc5 {[%emt 0:04:23]} 12. Nf3 {[%emt 0:00:50]} O-O-O {[%emt 0:00:44]} 13. Bf4 {[%emt 0:07:38]} Nb4 {[%emt 0:12:55]} 14. Qc1 {[%emt 0:19:41]} Be7 {[%emt 0:26:21]} 15. a3 {[%emt 0:01:42]} Na6 {[%emt 0:00:10]} 16. b4 {[%emt 0:04:53]} Qb6 {[%emt 0:01:37]} 17. Ne5 {[%emt 0:01:29]} c5 {[%emt 0:04:05]} 18. b5 {[%emt 0:05:59]} Nb8 {[%emt 0:01:10]} 19. g3 {[%emt 0:02:51]} Qe6 {[%emt 0:02:15]} 20. h4 {[%emt 0:01:24]} Bh5 {[%emt 0:01:36]} 21. Bh3 {[%emt 0:02:58]} Ng4 {[%emt 0:00:39]} 22. Nd5 {[%emt 0:00:56]} Rxd5 {[%emt 0:00:47]} 23. exd5 {[%emt 0:04:18]} Qxd5 {[%emt 0:00:02]} 24. e4 {[%emt 0:00:06]} Qe6 {[%emt 0:00:04]} 25. Qc4 {[%emt 0:00:28]} Qxc4 {[%emt 0:01:05]} 26. Nxc4 {[%emt 0:02:53]} f5 {[%emt 0:03:34]} 27. exf5 {[%emt 0:00:54]} Bf6 {[%emt 0:00:08]} 28. Rc1 {[%emt 0:01:06]} b6 {[%emt 0:00:30]} 29. Bg2 {[%emt 0:01:45]} Nd7 {[%emt 0:01:06]} 30. Bf3 {[%emt 0:00:27]} Rf8 {[%emt 0:01:19]} 31. Kd2 {[%emt 0:00:37]} Bd4 {[%emt 0:00:43]} 32. Rhe1 {[%emt 0:00:31]} Ngf6 {[%emt 0:00:03]} 33. Bg2 {[%emt 0:00:29]} Bg4 {[%emt 0:00:31]} 34. Re7 {[%emt 0:00:35]} Kd8 {[%emt 0:00:11]} 35. Rce1 {[%emt 0:00:44]} Bf2 {[%emt 0:00:30]} 36. Rf1 {[%emt 0:00:25]} Kxe7 {[%emt 0:00:43]} 37. Bd6+ {[%emt 0:00:12]} Kf7 {[%emt 0:00:02]} 38. Rxf2 {[%emt 0:00:34]} Re8 {[%emt 0:00:12]} 39. Ne3 {[%emt 0:00:59]} h5 {[%emt 0:00:55]} 40. Bc6 {[%emt 0:00:00]} Rd8 {[%emt 0:00:00]} 41. Nc4 {[%emt 0:06:50]} Nb8 {[%emt 0:03:37]} 42. Bc7 {[%emt 0:06:27]} Rf8 {[%emt 0:07:48]} 43. Ne5+ {[%emt 0:03:42]} Kg8 {[%emt 0:00:33]} 44. Ng6 {[%emt 0:02:50]} Nxc6 {[%emt 0:00:43]} 45. Nxf8 {[%emt 0:02:04]} Nd4 {[%emt 0:00:25]} 46. Ne6 {[%emt 0:01:39]} Nxb5 {[%emt 0:00:42]} 47. a4 {[%emt 0:03:04]} Nxc7 {[%emt 0:01:02]} 48. Nxc7 {[%emt 0:00:02]} Kf7 {[%emt 0:02:22]} 49. Nb5 {[%emt 0:01:38]} Ne8 {[%emt 0:01:55]} 50. Nxa7 {[%emt 0:01:15]} Nd6 {[%emt 0:00:44]} 51. Nb5 {[%emt 0:00:28]} Nxb5 {[%emt 0:01:15]} 52. axb5 {[%emt 0:00:02]} Kf6 {[%emt 0:00:05]} 53. Ke3 {[%emt 0:00:57]} Bxf5 {[%emt 0:00:48]} 54. Ra2 {[%emt 0:00:06]} Ke5 {[%emt 0:02:34]} 55. Ra6 {[%emt 0:00:08]} Kd5 {[%emt 0:00:07]} 56. Rxb6 {[%emt 0:00:09]} c4 {[%emt 0:00:04]} 57. dxc4+ {[%emt 0:00:14]} Kxc4 {[%emt 0:00:03]} 1-0

[Event "China Championship-A Women 2024"]
[Site "Xinhua Jiangsu"]
[Date "2024.05.10"]
[Round "5.6"]
[White "Zhai, Mo"]
[Black "Guo, Qi"]
[Result "1/2-1/2"]
[ECO "D35"]
[WhiteElo "2349"]
[BlackElo "2371"]
[Annotator "TA"]
[PlyCount "57"]
[EventDate "2024.05.06"]
[EventType "tourn"]
[EventCountry "CHN"]
[SourceTitle "playchess.com"]
[Source "ChessBase"]
[SourceQuality "1"]
[TimeControl "40/5400+30:1800+30"]

{[%evp 17,57,31,25,19,12,7,21,8,39,50,39,33,56,64,72,76,58,36,68,77,46,29,39,32,80,83,100,26,40,19,26,24,81,0,67,0,47,46,64,0,39,0]} 1. d4 {[%emt 0:01:08]} d5 {[%emt 0:00:35]} 2. c4 {[%emt 0:00:46]} e6 {[%emt 0:00:11]} 3. Nc3 {[%emt 0:01:18]} Bb4 {[%emt 0:00:07]} 4. cxd5 {[%emt 0:02:21]} exd5 {[%emt 0:00:07]} 5. Bf4 {[%emt 0:00:19]} c5 {[%emt 0:00:58]} 6. dxc5 {[%emt 0:01:20]} Nf6 {[%emt 0:01:12]} 7. e3 {[%emt 0:00:45]} O-O {[%emt 0:00:08]} 8. Bd3 {[%emt 0:05:21]} Bxc5 {[%emt 0:01:56]} 9. Nf3 {[%emt 0:01:00]} Nc6 {[%emt 0:00:22][%cal Bb8c6,Bc6d4,Bd4f5][%mdl 32]} 10. O-O {[%emt 0:00:36]} d4 {[%emt 0:00:50]} 11. exd4 {[%emt 0:14:58]} Nxd4 {[%emt 0:00:16]} 12. h3 {[%emt 0:01:18] Repels Bg4. The position is equal.} Bf5 {[%emt 0:15:33]} 13. Bxf5 {[%emt 0:08:27]} Nxf5 {[%emt 0:00:18]} 14. Bg5 {[%emt 0:05:03]} Be7 {[%emt 0:09:25]} 15. Qa4 {[%emt 0:10:13]} Nd5 {[%emt 0:07:17] Against Qf4} 16. Nxd5 {[%emt 0:02:25]} Qxd5 {[%emt 0:00:10]} 17. Rfd1 {[%emt 0:01:37]} Qc5 {[%emt 0:01:59]} 18. Rac1 {[%emt 0:10:56]} Qb6 {[%emt 0:00:39]} 19. Qf4 {[%emt 0:02:05] Black is weak on the light squares} h6 {[%emt 0:10:09]} 20. Qxf5 {[%emt 0:06:49]} Bxg5 {[%emt 0:03:39]} (20... hxg5 $14 21. Rd7 (21. Nxg5 g6 $11) 21... Qxb2) 21. Nxg5 $16 {[%emt 0:00:36]} g6 {[%emt 0:10:42] [#]} 22. Qg4 {[%emt 0:04:17]} (22. Qc5 $1 $16 Qxc5 23. Rxc5) 22... hxg5 $11 {[%emt 0:00:13]} 23. Qxg5 {[%emt 0:07:46]} Qxb2 {[%emt 0:00:28]} 24. Rd6 {[%emt 0:03:49] Black must now prevent Rc7.} Rae8 {[%emt 0:08:57]} (24... Qxa2 $11 25. Rc7 Qa1+ 26. Kh2 Qg7) 25. h4 {[%emt 0:01:49]} (25. Rc7 $16 {[%cal Od6g6] Rxg6+! would kill now.} Qb1+ (25... Re1+ 26. Kh2 $14) 26. Kh2) 25... Qe5 {[%emt 0:01:08]} ({Better is} 25... Re5 $11 26. Rxg6+ fxg6 27. Qxg6+ Kh8 28. Qh6+ Kg8 29. Qg6+ Kh8 30. Qh6+ Kg8 31. Qg6+) 26. Qd2 {[%emt 0:03:15] White is more active.} ({White should play} 26. Qxe5 $14 Rxe5 27. Rc7) 26... Qh5 {[%emt 0:04:49]} (26... Re7 $11) 27. Qd4 $14 {[%emt 0:00:38][%cal Oc1c5]} Qe5 {[%emt 0:00:45]} 28. Qd2 {[%emt 0:01:16]} Qh5 {[%emt 0:00:08]} 29. Qd4 {[%emt 0:00:42] Weighted Error Value: White=0.20 (precise) /Black=0.21 (precise) .  Mistake:       	White=3     	Black=4      Inaccurate:     	White=1     	Black=1      OK:         	White=8     	Black=6      Best:        	---       	Black=1} 1/2-1/2